[Event "84th ESP-ch 2019"]
[Site "Marbella"]
[Date "2019.11.16"]
[Round "1.32"]
[White "Mohamed Garcia, Ismael"]
[Black "Perez Garcia, Alejandro"]
[Result "0-1"]
[ECO "A45"]
[WhiteElo "1825"]
[BlackElo "2343"]
[Annotator "NA"]
[PlyCount "50"]
[EventDate "2019.11.16"]
[EventType "swiss"]
[EventCountry "ESP"]
[SourceTitle "playchess.com"]
[Source "ChessBase"]
[SourceQuality "1"]
[TimeControl "5400+30"]

1. d4 {[%emt 0:00:00]} Nf6 {[%emt 0:00:20]} 2. Bf4 {[%emt 0:00:03]} g6 {[%emt 0:00:36]} 3. e3 {[%emt 0:00:06]} Bg7 {[%emt 0:00:45]} 4. Nd2 {[%emt 0:00:15]} d6 {[%emt 0:01:59]} 5. Ngf3 {[%emt 0:00:23]} O-O {[%emt 0:01:33]} 6. Be2 {[%emt 0:00:31]} c5 {[%emt 0:02:31]} 7. c3 {[%emt 0:00:10]} Nc6 {[%emt 0:02:34]} 8. h3 {[%emt 0:00:52]} cxd4 {[%emt 0:01:18]} 9. exd4 {[%emt 0:00:16]} e5 {[%emt 0:00:52]} 10. dxe5 {[%emt 0:04:34]} dxe5 {[%emt 0:01:58]} 11. Nxe5 {[%emt 0:05:42]} Nd5 {[%emt 0:00:12]} 12. Nxc6 {[%emt 0:01:12]} bxc6 {[%emt 0:00:12]} 13. Bg3 {[%emt 0:12:25]} Re8 {[%emt 0:04:16]} 14. O-O {[%emt 0:05:57]} Bxc3 {[%emt 0:00:25]} 15. Nc4 {[%emt 0:00:32]} Bxb2 {[%emt 0:06:18]} 16. Nxb2 {[%emt 0:05:30]} Nc3 {[%emt 0:00:20]} 17. Qxd8 {[%emt 0:00:22]} Nxe2+ {[%emt 0:00:06]} 18. Kh2 {[%emt 0:00:08]} Rxd8 {[%emt 0:00:03]} 19. Be5 {[%emt 0:01:47]} Rd5 {[%emt 0:05:07]} 20. Bc7 {[%emt 0:07:04]} Ba6 {[%emt 0:01:53]} 21. Rfd1 {[%emt 0:13:27]} Rc8 {[%emt 0:02:01]} 22. Bd6 {[%emt 0:09:27]} Nd4 {[%emt 0:04:58]} 23. Bf4 {[%emt 0:06:15]} Rcd8 {[%emt 0:14:06]} 24. Be3 {[%emt 0:01:49]} Nc2 {[%emt 0:03:06]} 25. Bg5 {[%emt 0:02:48]} Rb8 {[%emt 0:02:39]} 0-1

[Event "84th ESP-ch 2019"]
[Site "Marbella"]
[Date "2019.11.16"]
[Round "1.33"]
[White "Gomez Dieguez, David"]
[Black "Gomez Cerezo, Diego Jesus"]
[Result "1-0"]
[ECO "C91"]
[WhiteElo "2336"]
[BlackElo "1811"]
[Annotator "ChessBase"]
[PlyCount "129"]
[EventDate "2019.11.16"]
[EventType "swiss"]
[EventCountry "ESP"]
[SourceTitle "playchess.com"]
[Source "ChessBase"]
[SourceQuality "1"]
[TimeControl "5400+30"]

1. e4 {[%emt 0:00:00]} e5 {[%emt 0:00:00]} 2. Nf3 {[%emt 0:00:00]} Nc6 {[%emt 0:00:00]} 3. Bb5 {[%emt 0:00:01]} a6 {[%emt 0:00:00]} 4. Ba4 {[%emt 0:00:05]} Nf6 {[%emt 0:00:13]} 5. O-O {[%emt 0:00:10]} Be7 {[%emt 0:00:29]} 6. Re1 {[%emt 0:00:06]} b5 {[%emt 0:00:22]} 7. Bb3 {[%emt 0:00:06]} d6 {[%emt 0:00:43]} 8. c3 {[%emt 0:00:08]} O-O {[%emt 0:00:15]} 9. d4 {[%emt 0:00:02]} Bg4 {[%emt 0:00:37]} 10. Be3 {[%emt 0:00:03]} Bh5 {[%emt 0:02:31]} 11. h3 {[%emt 0:00:21]} exd4 {[%emt 0:02:20]} 12. cxd4 {[%emt 0:00:05]} Na5 {[%emt 0:00:47]} 13. Bc2 {[%emt 0:00:06]} Nc4 {[%emt 0:04:18]} 14. Bc1 {[%emt 0:00:06]} c5 {[%emt 0:01:30]} 15. b3 {[%emt 0:00:04]} Nb6 {[%emt 0:00:43]} 16. Bb2 {[%emt 0:01:09]} Rc8 {[%emt 0:10:03]} 17. Nbd2 {[%emt 0:00:26]} cxd4 {[%emt 0:05:13]} 18. Qb1 {[%emt 0:08:25]} Bg6 {[%emt 0:13:04]} 19. Nxd4 {[%emt 0:04:12]} Nh5 {[%emt 0:07:52]} 20. Qd1 {[%emt 0:08:18]} Nd7 {[%emt 0:07:02]} 21. Nf1 {[%emt 0:05:06]} Nc5 {[%emt 0:09:06]} 22. Ne3 {[%emt 0:06:45]} Bf6 {[%emt 0:08:42]} 23. Nd5 {[%emt 0:11:04]} Be5 {[%emt 0:02:55]} 24. Qg4 {[%emt 0:11:38]} Kh8 {[%emt 0:05:52]} 25. f4 {[%emt 0:05:36]} Nf6 {[%emt 0:06:23]} 26. Nxf6 {[%emt 0:06:29]} Bxf6 {[%emt 0:00:11]} 27. f5 {[%emt 0:10:00]} h5 {[%emt 0:00:20]} 28. Qe2 {[%emt 0:04:15]} Bh7 {[%emt 0:00:10]} 29. Qxh5 {[%emt 0:00:35]} Nd7 {[%emt 0:01:26]} 30. Re2 {[%emt 0:02:12]} Ne5 {[%emt 0:03:12]} 31. Rf2 {[%emt 0:02:51]} Bh4 {[%emt 0:01:59]} 32. Rff1 {[%emt 0:02:01]} Qg5 {[%emt 0:00:24]} 33. Qxg5 {[%emt 0:02:01]} Bxg5 {[%emt 0:00:06]} 34. Rfe1 {[%emt 0:00:39]} Rc7 {[%emt 0:00:43]} 35. Rad1 {[%emt 0:00:19]} Rfc8 {[%emt 0:00:31]} 36. Bb1 {[%emt 0:00:12]} Bf6 {[%emt 0:01:23]} 37. Ba3 {[%emt 0:01:29]} Be7 {[%emt 0:00:59]} 38. Ne2 {[%emt 0:01:16]} Rc6 {[%emt 0:00:52]} 39. Nf4 {[%emt 0:01:53]} Bf8 {[%emt 0:01:12]} 40. Bb4 {[%emt 0:00:49]} Kg8 {[%emt 0:02:55]} 41. Nd5 {[%emt 0:00:16]} Kh8 {[%emt 0:00:49]} 42. Ba5 {[%emt 0:02:39]} f6 {[%emt 0:00:37]} 43. Nb4 {[%emt 0:00:44]} Rc5 {[%emt 0:01:14]} 44. Nxa6 {[%emt 0:00:35]} R5c6 {[%emt 0:00:13]} 45. Nb4 {[%emt 0:00:11]} Rc5 {[%emt 0:00:41]} 46. Bb6 {[%emt 0:00:44]} Rc3 {[%emt 0:00:23]} 47. Nd5 {[%emt 0:00:33]} R3c6 {[%emt 0:00:17]} 48. Bd4 {[%emt 0:03:11]} Bg8 {[%emt 0:00:48]} 49. Nf4 {[%emt 0:00:27]} Bf7 {[%emt 0:00:22]} 50. Bb2 {[%emt 0:01:42]} Kg8 {[%emt 0:00:19]} 51. Rc1 {[%emt 0:01:01]} Rc5 {[%emt 0:01:15]} 52. Ba3 {[%emt 0:00:40]} R5c6 {[%emt 0:00:19]} 53. Rxc6 {[%emt 0:00:15]} Rxc6 {[%emt 0:00:17]} 54. Rc1 {[%emt 0:00:51]} g5 {[%emt 0:00:51]} 55. fxg6 {[%emt 0:00:43]} Rxc1+ {[%emt 0:00:12]} 56. Bxc1 {[%emt 0:00:07]} Nxg6 {[%emt 0:00:14]} 57. Nh5 {[%emt 0:01:16]} Be7 {[%emt 0:00:43]} 58. Ng3 {[%emt 0:00:36]} d5 {[%emt 0:00:35]} 59. exd5 {[%emt 0:00:10]} Bd6 {[%emt 0:00:35]} 60. Nf5 {[%emt 0:01:03]} Bc5+ {[%emt 0:00:50]} 61. Be3 {[%emt 0:00:19]} Bxe3+ {[%emt 0:00:27]} 62. Nxe3 {[%emt 0:00:04]} Nf4 {[%emt 0:00:10]} 63. Kf2 {[%emt 0:00:27]} Nxd5 {[%emt 0:00:47]} 64. Nxd5 {[%emt 0:00:05]} Bxd5 {[%emt 0:00:09]} 65. g3 {[%emt 0:01:06]} 1-0

[Event "84th ESP-ch 2019"]
[Site "Marbella"]
[Date "2019.11.16"]
[Round "1.34"]
[White "Gomez Serrano, Jose Manuel"]
[Black "Guerra Rivera, Salvador"]
[Result "1-0"]
[ECO "E20"]
[WhiteElo "1910"]
[BlackElo "2334"]
[Annotator "NA"]
[PlyCount "125"]
[EventDate "2019.11.16"]
[EventType "swiss"]
[EventCountry "ESP"]
[SourceTitle "playchess.com"]
[Source "ChessBase"]
[SourceQuality "1"]
[TimeControl "5400+30"]

1. d4 Nf6 {[%emt 0:00:00]} 2. c4 {[%emt 0:00:23]} e6 {[%emt 0:00:16]} 3. Nc3 {[%emt 0:00:44]} Bb4 {[%emt 0:00:07]} 4. f3 {[%emt 0:00:49]} c5 {[%emt 0:01:14]} 5. a3 {[%emt 0:02:03]} Bxc3+ {[%emt 0:03:33]} 6. bxc3 {[%emt 0:00:18]} O-O {[%emt 0:01:18]} 7. e4 {[%emt 0:02:38]} d6 {[%emt 0:03:16]} 8. Be3 {[%emt 0:03:14]} b6 {[%emt 0:04:49]} 9. Bd3 {[%emt 0:01:54]} Nc6 {[%emt 0:01:24]} 10. Ne2 {[%emt 0:06:09]} Ba6 {[%emt 0:03:46]} 11. Ng3 {[%emt 0:11:01]} Na5 {[%emt 0:04:51]} 12. Qe2 {[%emt 0:00:44]} Qd7 {[%emt 0:02:18]} 13. a4 {[%emt 0:02:21]} cxd4 {[%emt 0:02:18]} 14. cxd4 {[%emt 0:03:14]} Rac8 {[%emt 0:00:06]} 15. O-O {[%emt 0:07:03]} Bxc4 {[%emt 0:00:52]} 16. Bd2 {[%emt 0:05:05]} Bxd3 {[%emt 0:06:07]} 17. Qxd3 {[%emt 0:00:21]} Nc4 {[%emt 0:00:13]} 18. Bc3 {[%emt 0:02:34]} Qc7 {[%emt 0:09:56]} 19. Ne2 {[%emt 0:02:04]} e5 {[%emt 0:03:48]} 20. Rfc1 {[%emt 0:03:51]} Rfd8 {[%emt 0:19:30]} 21. d5 {[%emt 0:12:21]} Qc5+ {[%emt 0:02:04]} 22. Kh1 {[%emt 0:00:32]} Rc7 {[%emt 0:03:12]} 23. h3 {[%emt 0:01:36]} Rdc8 {[%emt 0:00:21]} 24. Bd2 {[%emt 0:06:34]} a6 {[%emt 0:00:50]} 25. Rc3 {[%emt 0:01:08]} b5 {[%emt 0:00:47]} 26. Rac1 {[%emt 0:00:54]} Qb6 {[%emt 0:00:43]} 27. axb5 {[%emt 0:05:50]} axb5 {[%emt 0:00:51]} 28. Rb3 {[%emt 0:03:59]} Qa6 {[%emt 0:09:20]} 29. Rcb1 {[%emt 0:06:33]} Nxd2 {[%emt 0:03:08]} 30. Qxd2 {[%emt 0:00:15]} Rc2 {[%emt 0:00:26]} 31. Qd3 {[%emt 0:01:03]} Qa2 {[%emt 0:02:42]} 32. Re1 {[%emt 0:00:55]} Nh5 {[%emt 0:00:34]} 33. Kh2 {[%emt 0:00:38]} g6 {[%emt 0:00:36]} 34. Qxb5 {[%emt 0:01:27]} Kg7 {[%emt 0:01:42]} 35. Qd3 {[%emt 0:00:51]} Rd2 {[%emt 0:02:47]} 36. Ra3 {[%emt 0:00:50]} Qc2 {[%emt 0:00:24]} 37. Qa6 {[%emt 0:02:35]} Nf4 {[%emt 0:02:03]} 38. Nxf4 {[%emt 0:00:31]} exf4 {[%emt 0:00:05]} 39. Rg1 {[%emt 0:00:06]} Qc5 {[%emt 0:03:27]} 40. Ra5 {[%emt 0:01:00]} Qc7 {[%emt 0:01:33]} 41. Rb5 {[%emt 0:00:16]} Rd8 {[%emt 0:01:26]} 42. Rb7 {[%emt 0:00:30]} Qc3 {[%emt 0:00:12]} 43. Kh1 {[%emt 0:00:49]} Qf6 {[%emt 0:00:41]} 44. Qa5 {[%emt 0:01:00]} Rc2 {[%emt 0:00:46]} 45. Rc7 {[%emt 0:00:20]} Rxc7 {[%emt 0:01:09]} 46. Qxc7 {[%emt 0:00:10]} Ra8 {[%emt 0:00:02]} 47. Qc6 {[%emt 0:00:52]} Ra2 {[%emt 0:00:07]} 48. Qc4 {[%emt 0:00:27]} Ra3 {[%emt 0:00:23]} 49. Rd1 {[%emt 0:01:01]} Kh6 {[%emt 0:01:39]} 50. Qb4 {[%emt 0:00:25]} Ra2 {[%emt 0:00:13]} 51. Qb3 {[%emt 0:00:12]} Rb2 {[%emt 0:00:28]} 52. Qa3 {[%emt 0:00:23]} g5 {[%emt 0:00:46]} 53. Qd3 {[%emt 0:00:44]} Ra2 {[%emt 0:00:35]} 54. Qb3 {[%emt 0:00:13]} Re2 {[%emt 0:00:05]} 55. Qc4 {[%emt 0:00:37]} Qb2 {[%emt 0:00:48]} 56. Rg1 {[%emt 0:00:28]} Kg7 {[%emt 0:00:34]} 57. Qc8 {[%emt 0:00:13]} Qe5 {[%emt 0:00:19]} 58. Rb1 {[%emt 0:00:35]} Qd4 {[%emt 0:00:56]} 59. Qf5 {[%emt 0:00:18]} h6 {[%emt 0:00:12]} 60. Qd7 {[%emt 0:01:44]} Qc5 {[%emt 0:00:31]} 61. Qb5 {[%emt 0:00:45]} Qf2 {[%emt 0:00:28]} 62. Rg1 {[%emt 0:00:26]} Qg3 {[%emt 0:00:44]} 63. Qxe2 {[%emt 0:00:12]} 1-0

[Event "84th ESP-ch 2019"]
[Site "Marbella"]
[Date "2019.11.16"]
[Round "1.35"]
[White "Mingarro Carceller, Sergi"]
[Black "Maceira Moya, Nery"]
[Result "1-0"]
[ECO "B90"]
[WhiteElo "2329"]
[BlackElo "1773"]
[Annotator "NA"]
[PlyCount "71"]
[EventDate "2019.11.16"]
[EventType "swiss"]
[EventCountry "ESP"]
[SourceTitle "playchess.com"]
[Source "ChessBase"]
[SourceQuality "1"]
[TimeControl "5400+30"]

1. e4 {[%emt 0:00:00]} c5 {[%emt 0:00:00]} 2. Nf3 {[%emt 0:00:00]} d6 {[%emt 0:00:00]} 3. d4 {[%emt 0:00:10]} cxd4 {[%emt 0:00:06]} 4. Nxd4 {[%emt 0:00:08]} Nf6 {[%emt 0:00:29]} 5. Nc3 {[%emt 0:00:08]} a6 {[%emt 0:00:25]} 6. f3 {[%emt 0:00:15]} e6 {[%emt 0:06:12]} 7. Be3 {[%emt 0:00:26]} Be7 {[%emt 0:01:20]} 8. Qd2 {[%emt 0:01:24]} b5 {[%emt 0:02:49]} 9. O-O-O {[%emt 0:04:49]} Bb7 {[%emt 0:02:25]} 10. g4 {[%emt 0:02:07]} Nc6 {[%emt 0:05:55]} 11. Nxc6 {[%emt 0:05:10]} Bxc6 {[%emt 0:00:08]} 12. Ne2 {[%emt 0:00:09]} d5 {[%emt 0:09:42]} 13. Nd4 {[%emt 0:02:29]} Bb7 {[%emt 0:00:53]} 14. e5 {[%emt 0:00:16]} Nd7 {[%emt 0:01:32]} 15. f4 {[%emt 0:00:22]} Qc7 {[%emt 0:18:29]} 16. f5 {[%emt 0:09:45]} exf5 {[%emt 0:15:12]} 17. e6 {[%emt 0:04:18]} fxe6 {[%emt 0:09:13]} 18. Nxe6 {[%emt 0:01:12]} Qe5 {[%emt 0:00:07]} 19. gxf5 {[%emt 0:01:07]} Bb4 {[%emt 0:06:47]} 20. c3 {[%emt 0:04:26]} Rc8 {[%emt 0:00:15]} 21. Bd4 {[%emt 0:00:31]} Qd6 {[%emt 0:02:46]} 22. Nxg7+ {[%emt 0:04:43]} Kf7 {[%emt 0:00:28]} 23. Be2 {[%emt 0:02:32]} Nf6 {[%emt 0:00:44]} 24. Qh6 {[%emt 0:10:06]} Ne4 {[%emt 0:05:17]} 25. Bh5+ {[%emt 0:01:16]} Ke7 {[%emt 0:01:12]} 26. Ne6 {[%emt 0:01:17]} Kd7 {[%emt 0:02:15]} 27. Qg7+ {[%emt 0:01:06]} Qe7 {[%emt 0:00:20]} 28. Qxe7+ {[%emt 0:00:40]} Bxe7 {[%emt 0:00:09]} 29. Bxh8 {[%emt 0:01:19]} Rxh8 {[%emt 0:00:06]} 30. Rhe1 {[%emt 0:00:39]} Kc8 {[%emt 0:00:40]} 31. Bf3 {[%emt 0:00:56]} Bf6 {[%emt 0:01:50]} 32. Kc2 {[%emt 0:00:56]} Rg8 {[%emt 0:00:49]} 33. Nf4 {[%emt 0:01:05]} Rd8 {[%emt 0:01:06]} 34. Nxd5 {[%emt 0:01:27]} Bxd5 {[%emt 0:00:12]} 35. Bxe4 {[%emt 0:00:12]} Bh4 {[%emt 0:01:15]} 36. Bxd5 1-0

[Event "84th ESP-ch 2019"]
[Site "Marbella"]
[Date "2019.11.16"]
[Round "1.36"]
[White "Espejo Montagut, Jose Maria"]
[Black "Rahal, Michael A"]
[Result "0-1"]
[ECO "E91"]
[WhiteElo "1768"]
[BlackElo "2309"]
[Annotator "NA"]
[PlyCount "80"]
[EventDate "2019.11.16"]
[EventType "swiss"]
[EventCountry "ESP"]
[SourceTitle "playchess.com"]
[Source "ChessBase"]
[SourceQuality "1"]
[TimeControl "5400+30"]

1. d4 {[%emt 0:00:00]} Nf6 {[%emt 0:00:00]} 2. c4 {[%emt 0:00:03]} g6 {[%emt 0:00:00]} 3. Nc3 {[%emt 0:00:10]} Bg7 {[%emt 0:00:01]} 4. e4 {[%emt 0:00:37]} d6 {[%emt 0:00:12]} 5. Nf3 {[%emt 0:01:10]} O-O {[%emt 0:00:15]} 6. Be2 {[%emt 0:00:10]} Bg4 {[%emt 0:00:44]} 7. O-O {[%emt 0:01:24]} Nfd7 {[%emt 0:01:58]} 8. h3 {[%emt 0:03:57]} Bxf3 {[%emt 0:00:10]} 9. Bxf3 {[%emt 0:00:08]} Nc6 {[%emt 0:00:38]} 10. Be3 {[%emt 0:02:39]} e5 {[%emt 0:04:10]} 11. d5 {[%emt 0:10:31]} Nd4 {[%emt 0:01:16]} 12. Be2 {[%emt 0:03:07]} c5 {[%emt 0:03:41]} 13. Bd3 {[%emt 0:05:02]} a6 {[%emt 0:03:47]} 14. Rb1 {[%emt 0:11:36]} f5 {[%emt 0:04:11]} 15. f3 {[%emt 0:05:10]} Rb8 {[%emt 0:08:31]} 16. a3 {[%emt 0:02:18]} Nf6 {[%emt 0:04:43]} 17. b4 {[%emt 0:03:01]} Nh5 {[%emt 0:01:12]} 18. bxc5 {[%emt 0:03:41]} dxc5 {[%emt 0:00:13]} 19. Qd2 {[%emt 0:08:15]} Nf4 {[%emt 0:05:59]} 20. Rb2 {[%emt 0:06:02]} Kh8 {[%emt 0:07:48]} 21. Ne2 {[%emt 0:05:00]} fxe4 {[%emt 0:11:49]} 22. fxe4 {[%emt 0:07:54]} Nfxe2+ {[%emt 0:13:22]} 23. Bxe2 {[%emt 0:00:17]} Rxf1+ {[%emt 0:00:28]} 24. Bxf1 {[%emt 0:00:39]} b5 {[%emt 0:02:26]} 25. cxb5 {[%emt 0:04:18]} axb5 {[%emt 0:00:05]} 26. Bxd4 {[%emt 0:00:49]} exd4 {[%emt 0:00:33]} 27. Rxb5 {[%emt 0:00:42]} Rc8 {[%emt 0:01:20]} 28. Bc4 {[%emt 0:00:57]} Qh4 {[%emt 0:01:30]} 29. Qe2 {[%emt 0:00:57]} Be5 {[%emt 0:01:33]} 30. Rb3 {[%emt 0:04:26]} Rf8 {[%emt 0:04:26]} 31. Rf3 {[%emt 0:00:57]} Rxf3 {[%emt 0:01:07]} 32. Qxf3 {[%emt 0:00:41]} Qe1+ {[%emt 0:00:36]} 33. Bf1 {[%emt 0:00:45]} Kg7 {[%emt 0:00:42]} 34. g4 {[%emt 0:01:18]} c4 {[%emt 0:01:23]} 35. Kg2 {[%emt 0:00:35]} Qd2+ {[%emt 0:03:36]} 36. Qe2 {[%emt 0:00:06]} Qf4 {[%emt 0:01:08]} 37. Kh1 {[%emt 0:02:26]} d3 {[%emt 0:00:30]} 38. Qg2 {[%emt 0:00:15]} d2 {[%emt 0:03:20]} 39. Be2 {[%emt 0:00:07]} c3 {[%emt 0:00:11]} 40. Bd1 {[%emt 0:00:18]} Qe3 {[%emt 0:00:17]} 0-1

[Event "84th ESP-ch 2019"]
[Site "Marbella"]
[Date "2019.11.16"]
[Round "1.37"]
[White "Martin Carmona, Gaston Manuel"]
[Black "Lozano Aguilar, Juan Francisco"]
[Result "1-0"]
[ECO "B01"]
[WhiteElo "2304"]
[BlackElo "1768"]
[Annotator "NA"]
[PlyCount "57"]
[EventDate "2019.11.16"]
[EventType "swiss"]
[EventCountry "ESP"]
[SourceTitle "playchess.com"]
[Source "ChessBase"]
[SourceQuality "1"]
[TimeControl "5400+30"]

1. e4 {[%emt 0:00:01]} d5 {[%emt 0:00:00]} 2. exd5 {[%emt 0:00:33]} Qxd5 {[%emt 0:00:00]} 3. Nc3 {[%emt 0:00:24]} Qa5 {[%emt 0:00:09]} 4. d4 {[%emt 0:00:26]} c6 {[%emt 0:00:13]} 5. Nf3 {[%emt 0:00:09]} Nf6 {[%emt 0:00:38]} 6. Bc4 {[%emt 0:00:25]} Bg4 {[%emt 0:00:42]} 7. h3 {[%emt 0:00:52]} Bh5 {[%emt 0:02:03]} 8. Bd2 {[%emt 0:06:59]} Qc7 {[%emt 0:05:25]} 9. Qe2 {[%emt 0:00:40]} e6 {[%emt 0:01:29]} 10. g4 {[%emt 0:01:41]} Bg6 {[%emt 0:00:13]} 11. Ne5 {[%emt 0:02:42]} Be7 {[%emt 0:05:12]} 12. h4 {[%emt 0:04:28]} Qb6 {[%emt 0:12:28]} 13. O-O-O {[%emt 0:07:13]} Qxd4 {[%emt 0:08:59]} 14. h5 {[%emt 0:04:04]} Be4 {[%emt 0:11:04]} 15. Bf4 {[%emt 0:02:13]} Bd3 {[%emt 0:04:56]} 16. Qf3 {[%emt 0:01:31]} Nd5 {[%emt 0:07:08]} 17. Nxd5 {[%emt 0:03:25]} cxd5 {[%emt 0:00:40]} 18. Rxd3 {[%emt 0:04:48]} Qb6 {[%emt 0:01:45]} 19. Be3 {[%emt 0:00:40]} Qb4 {[%emt 0:00:55]} 20. Qxf7+ {[%emt 0:00:18]} Kd8 {[%emt 0:00:15]} 21. Qxe6 {[%emt 0:00:38]} Rf8 {[%emt 0:03:35]} 22. Rxd5+ {[%emt 0:00:50]} Kc7 {[%emt 0:01:21]} 23. Rhd1 {[%emt 0:01:11]} Rd8 {[%emt 0:01:15]} 24. Rd7+ {[%emt 0:01:18]} Rxd7 {[%emt 0:00:47]} 25. Rxd7+ {[%emt 0:00:06]} Nxd7 {[%emt 0:00:32]} 26. Qxd7+ {[%emt 0:00:10]} Kb8 {[%emt 0:00:09]} 27. Nc6+ {[%emt 0:00:09]} bxc6 {[%emt 0:00:25]} 28. Bf4+ {[%emt 0:00:08]} Bd6 {[%emt 0:01:04]} 29. Bxd6+ {[%emt 0:00:21] Qb6 Bf1+} 1-0

[Event "84th ESP-ch 2019"]
[Site "Marbella"]
[Date "2019.11.16"]
[Round "1.38"]
[White "Fernandez Cantalapiedra, Isabel"]
[Black "Zurano Lopez, Pedro"]
[Result "0-1"]
[ECO "A46"]
[WhiteElo "1754"]
[BlackElo "2292"]
[Annotator "NA"]
[PlyCount "114"]
[EventDate "2019.11.16"]
[EventType "swiss"]
[EventCountry "ESP"]
[SourceTitle "playchess.com"]
[Source "ChessBase"]
[SourceQuality "1"]
[TimeControl "5400+30"]

1. d4 {[%emt 0:00:00]} Nf6 {[%emt 0:00:00]} 2. Nf3 {[%emt 0:00:00]} e6 {[%emt 0:00:01]} 3. Bf4 {[%emt 0:00:03]} b6 {[%emt 0:02:03]} 4. e3 {[%emt 0:01:13]} Bb7 {[%emt 0:02:03]} 5. Bd3 {[%emt 0:02:57]} d6 {[%emt 0:02:49]} 6. h3 {[%emt 0:01:05]} Nbd7 {[%emt 0:02:27]} 7. Bh2 {[%emt 0:04:00]} Ne4 {[%emt 0:03:45]} 8. O-O {[%emt 0:01:31]} g6 {[%emt 0:06:25]} 9. c4 {[%emt 0:02:50]} Bg7 {[%emt 0:02:40]} 10. Qc2 {[%emt 0:08:07]} f5 {[%emt 0:02:07]} 11. Nbd2 {[%emt 0:04:31]} Nxd2 {[%emt 0:02:18]} 12. Nxd2 {[%emt 0:09:16]} O-O {[%emt 0:03:35]} 13. Rfe1 {[%emt 0:02:11]} a5 {[%emt 0:06:01]} 14. Be2 {[%emt 0:08:49]} e5 {[%emt 0:12:29]} 15. Bf3 {[%emt 0:02:54]} e4 {[%emt 0:04:29]} 16. Be2 {[%emt 0:00:47]} Qe7 {[%emt 0:06:00]} 17. Bf1 {[%emt 0:06:35]} a4 {[%emt 0:03:28]} 18. b4 {[%emt 0:05:40]} axb3 {[%emt 0:05:48]} 19. Nxb3 {[%emt 0:06:23]} Ra3 {[%emt 0:04:57]} 20. Rad1 {[%emt 0:09:32]} Rfa8 {[%emt 0:00:56]} 21. Rd2 {[%emt 0:01:39]} Kh8 {[%emt 0:04:21]} 22. Rc1 {[%emt 0:03:42]} c5 {[%emt 0:08:44]} 23. Rcd1 {[%emt 0:02:43]} Bc6 {[%emt 0:00:07]} 24. Qb1 {[%emt 0:05:56]} Ba4 {[%emt 0:01:58]} 25. dxc5 {[%emt 0:02:46]} dxc5 {[%emt 0:00:07]} 26. Bc7 {[%emt 0:01:15]} Rc8 {[%emt 0:02:41]} 27. Bd6 {[%emt 0:00:52]} Qe6 {[%emt 0:01:05]} 28. Bg3 {[%emt 0:04:33]} Bc6 {[%emt 0:02:45]} 29. Rd6 {[%emt 0:00:30]} Qe8 {[%emt 0:00:16]} 30. Qc1 {[%emt 0:01:40]} Rxa2 {[%emt 0:00:26]} 31. R1d2 {[%emt 0:00:45]} Rxd2 {[%emt 0:00:41]} 32. Qxd2 {[%emt 0:00:02]} Ne5 {[%emt 0:00:44]} 33. Nc1 {[%emt 0:00:25]} Nf7 {[%emt 0:00:35]} 34. Ne2 {[%emt 0:01:14]} Nxd6 {[%emt 0:00:20]} 35. Qxd6 {[%emt 0:00:08]} Qd7 {[%emt 0:00:52]} 36. Qf4 {[%emt 0:00:35]} h6 {[%emt 0:00:59]} 37. h4 {[%emt 0:00:46]} Kh7 {[%emt 0:00:08]} 38. Bh2 {[%emt 0:00:33]} Qe6 {[%emt 0:01:13]} 39. Qg3 {[%emt 0:00:26]} Be8 {[%emt 0:01:28]} 40. Nf4 {[%emt 0:00:20]} Qd6 {[%emt 0:02:23]} 41. Qh3 {[%emt 0:00:35]} Be5 {[%emt 0:00:11]} 42. h5 {[%emt 0:00:23]} Rc6 {[%emt 0:00:42]} 43. hxg6+ {[%emt 0:00:35]} Bxg6 {[%emt 0:00:17]} 44. Bg3 {[%emt 0:00:29]} Qf6 {[%emt 0:01:13]} 45. Nd5 {[%emt 0:00:35]} Qg7 {[%emt 0:00:15]} 46. Bh4 {[%emt 0:00:32]} Re6 {[%emt 0:00:23]} 47. Be2 {[%emt 0:00:20]} Qf7 {[%emt 0:00:44]} 48. Bg5 {[%emt 0:00:13]} Qg7 {[%emt 0:01:11]} 49. g4 {[%emt 0:00:49]} Bf7 {[%emt 0:00:31]} 50. Bf4 {[%emt 0:00:41]} Bxf4 {[%emt 0:01:13]} 51. Nxf4 {[%emt 0:00:04]} Re5 {[%emt 0:00:26]} 52. Kh2 {[%emt 0:00:57]} fxg4 {[%emt 0:00:30]} 53. Bxg4 {[%emt 0:00:27]} Qg5 {[%emt 0:00:07]} 54. Bc8 {[%emt 0:00:33]} h5 {[%emt 0:00:27]} 55. Bd7 {[%emt 0:00:31]} Bxc4 {[%emt 0:00:40]} 56. Bc6 {[%emt 0:00:27]} Qg4 {[%emt 0:00:28]} 57. Qxg4 {[%emt 0:00:34]} hxg4 {[%emt 0:00:07]} 0-1

[Event "84th ESP-ch 2019"]
[Site "Marbella"]
[Date "2019.11.16"]
[Round "1.39"]
[White "Medarde Santiago, Luis Marcos"]
[Black "Juan Lepp, Jaime Boris"]
[Result "1-0"]
[ECO "B00"]
[WhiteElo "2285"]
[BlackElo "1746"]
[Annotator "NA"]
[PlyCount "41"]
[EventDate "2019.11.16"]
[EventType "swiss"]
[EventCountry "ESP"]
[SourceTitle "playchess.com"]
[Source "ChessBase"]
[SourceQuality "1"]
[TimeControl "5400+30"]

1. e4 {[%emt 0:03:13]} Nc6 {[%emt 0:00:05]} 2. Nf3 {[%emt 0:00:53]} f5 {[%emt 0:00:33]} 3. exf5 {[%emt 0:01:12]} d5 {[%emt 0:00:09]} 4. d4 {[%emt 0:00:11]} Bxf5 {[%emt 0:00:11]} 5. Bb5 {[%emt 0:03:17]} Qd6 {[%emt 0:00:19]} 6. Ne5 {[%emt 0:03:19]} Nf6 {[%emt 0:00:26]} 7. O-O {[%emt 0:03:35]} Nd7 {[%emt 0:00:25]} 8. Bf4 {[%emt 0:12:20]} Ncxe5 {[%emt 0:02:20]} 9. Bxe5 {[%emt 0:00:43]} Qb6 {[%emt 0:01:13]} 10. Bxd7+ {[%emt 0:03:21]} Kxd7 {[%emt 0:05:42]} 11. Nc3 {[%emt 0:01:58]} e6 {[%emt 0:08:10]} 12. Rb1 {[%emt 0:00:56]} Bd6 {[%emt 0:07:30]} 13. Re1 {[%emt 0:01:14]} Bxe5 {[%emt 0:09:15]} 14. Rxe5 {[%emt 0:01:33]} Qc6 {[%emt 0:05:30]} 15. Nxd5 {[%emt 0:12:51]} Bxc2 {[%emt 0:05:12]} 16. Qg4 {[%emt 0:09:14]} Rhg8 {[%emt 0:09:52]} 17. Rbe1 {[%emt 0:04:55]} Rae8 {[%emt 0:16:32]} 18. Nb4 {[%emt 0:08:22]} Qc4 {[%emt 0:02:16]} 19. Nxc2 {[%emt 0:00:30]} Qxc2 {[%emt 0:00:27]} 20. Rxe6 {[%emt 0:00:14]} Kd8 {[%emt 0:00:48]} 21. Qg5+ {[%emt 0:00:06]} 1-0